bitfinex-derivatives/quotes_BTCF0:USTF0_20241023
["timestamp","ask_amount","ask_price","bid_price","bid_amount"]
[1729662480503,0.0550903,67141.0,67139.0,0.05961]
[1729662480703,0.11,67140.0,67138.0,0.1192342]
[1729662481005,0.11,67140.0,67139.0,0.0596232]
[1729662481297,0.11,67140.0,67138.0,0.1194342]
[1729662481497,0.11,67140.0,67138.0,0.1196342]
[1729662481899,0.11,67140.0,67138.0,0.060011]
[1729662482102,0.11,67140.0,67138.0,0.1196342]
[1729662482313,0.11,67140.0,67138.0,0.060011]
[1729662483306,0.11,67140.0,67139.0,0.05961]
[1729662484712,0.11,67140.0,67138.0,0.0600232]
[1729662484891,0.11,67140.0,67138.0,0.0602232]
[1729662487406,0.05961,67139.0,67138.0,0.0006]
[1729662488303,0.05961,67139.0,67138.0,0.04532376]
[1729662489409,0.05961,67139.0,67138.0,0.0006]
[1729662492607,0.16059085,67139.0,67138.0,0.0006]
[1729662493106,0.059616,67132.0,67131.0,0.0004]
[1729662493408,0.21634375,67132.0,67131.0,0.0006]
[1729662493612,0.27059141,67132.0,67131.0,0.0006]
[1729662493801,0.33709141,67132.0,67131.0,0.0006]
[1729662496918,0.28284375,67132.0,67131.0,0.0006]
[1729662498604,0.17284375,67132.0,67131.0,0.0006]
[1729662499216,0.28284375,67132.0,67131.0,0.0006]
[1729662499407,0.28256438,67132.0,67131.0,0.0006]
[1729662500603,0.17256438,67132.0,67131.0,0.0006]
[1729662500806,0.126116,67132.0,67131.0,0.0006]
[1729662501407,0.0665,67132.0,67131.0,0.0006]
[1729662501611,0.09209445,67132.0,67131.0,0.0006]
[1729662507108,0.09209445,67132.0,67131.0,0.060217]
[1729662507916,0.19224914,67132.0,67131.0,0.060217]
[1729662508717,0.10015469,67132.0,67131.0,0.060217]
[1729662508921,0.04634545,67132.0,67131.0,0.060217]
[1729662509309,0.12359299,67136.0,67135.0,0.059614]
[1729662509511,0.17043759,67136.0,67135.0,0.420414]
[1729662509723,0.07183759,67136.0,67135.0,0.420414]
[1729662510527,0.0468446,67136.0,67135.0,0.420414]
[1729662511217,0.04701678,67140.0,67137.0,0.059612]
[1729662511420,0.04701692,67139.0,67137.0,0.059612]
[1729662511620,0.04701692,67138.0,67137.0,0.059612]
[1729662512027,0.15701692,67138.0,67137.0,0.059612]
[1729662514531,0.15701692,67138.0,67137.0,0.420412]
[1729662515822,0.11,67138.0,67137.0,0.420412]
[1729662517234,0.02514085,67141.0,67137.0,0.420412]
[1729662517431,0.11,67138.0,67137.0,0.420412]
[1729662517628,0.11,67143.0,67137.0,0.3608]
[1729662518022,0.11,67143.0,67141.0,0.059608]
[1729662518217,0.169604,67146.0,67142.0,0.169608]
[1729662518728,0.11,67143.0,67142.0,0.059608]
[1729662520225,0.08438697,67146.0,67142.0,0.059608]
[1729662520422,0.11,67145.0,67142.0,0.059608]
[1729662522333,0.11,67145.0,67140.0,0.0327]
[1729662522519,0.11,67145.0,67143.0,0.059606]
[1729662522718,0.04698698,67144.0,67143.0,0.059606]
[1729662523127,0.11,67145.0,67143.0,0.059606]
[1729662523323,0.04698861,67144.0,67143.0,0.059606]
[1729662523531,0.04698861,67144.0,67142.0,0.11]
[1729662523724,0.04698861,67143.0,67142.0,0.1102]
[1729662523928,0.04698861,67143.0,67142.0,0.169808]
[1729662527935,0.11,67145.0,67142.0,0.169808]
[1729662528140,0.04697538,67144.0,67142.0,0.169808]
[1729662528430,0.04697538,67143.0,67142.0,0.169808]
[1729662529730,0.11,67145.0,67142.0,0.169808]
[1729662531942,0.11,67143.0,67142.0,0.059808]
[1729662539747,0.11,67143.0,67142.0,0.10450504]
[1729662540647,0.13478297,67146.0,67144.0,0.059606]
[1729662541043,0.19438697,67146.0,67142.0,0.04489704]
[1729662541240,0.11,67143.0,67142.0,0.04509704]
[1729662541442,0.08438697,67146.0,67142.0,0.04509704]
[1729662541744,0.11,67143.0,67142.0,0.04509704]
[1729662541931,0.11,67143.0,67142.0,0.060008]
[1729662542138,0.11,67143.0,67142.0,0.10471923]
[1729662544238,0.13478297,67146.0,67142.0,0.060008]
[1729662544439,0.11,67146.0,67143.0,0.04471563]
[1729662545040,0.10225043,67145.0,67142.0,0.060008]
[1729662545338,0.10225043,67144.0,67142.0,0.060208]
[1729662545537,0.10225043,67143.0,67142.0,0.060208]
[1729662545850,0.04731523,67143.0,67142.0,0.060208]
[1729662546041,0.10225043,67145.0,67142.0,0.060208]
[1729662546348,0.10225043,67144.0,67142.0,0.060208]
[1729662546552,0.10225043,67143.0,67142.0,0.060208]
[1729662546747,0.11,67146.0,67142.0,0.060208]
[1729662546748,0.10225043,67145.0,67142.0,0.060208]
[1729662546951,0.10225043,67144.0,67142.0,0.060208]
[1729662547151,0.10225043,67143.0,67142.0,0.060208]
[1729662547346,0.10236823,67145.0,67143.0,0.059606]
[1729662547547,0.10236853,67144.0,67143.0,0.059606]
[1729662552545,0.10236853,67144.0,67143.0,0.420406]
[1729662553152,0.11,67146.0,67143.0,0.420406]
[1729662553455,0.11,67146.0,67145.0,0.04472009]
[1729662555458,0.11,67146.0,67145.0,0.40552009]
[1729662556844,0.02483478,67148.0,67145.0,0.40552009]
[1729662557046,0.169601,67149.0,67144.0,0.059605]
[1729662557245,0.169601,67149.0,67144.0,0.059805]
[1729662557457,0.059603,67148.0,67144.0,0.059805]
[1729662560049,0.16481916,67147.0,67144.0,0.059805]
[1729662560363,0.16481916,67146.0,67144.0,0.059805]
[1729662560660,0.059603,67148.0,67144.0,0.059805]
[1729662560661,0.16481916,67145.0,67144.0,0.059805]
[1729662560850,0.16481916,67147.0,67144.0,0.059805]
[1729662561052,0.16481916,67146.0,67144.0,0.059805]
[1729662561347,0.16481916,67145.0,67144.0,0.059805]
[1729662561550,0.16481916,67145.0,67144.0,0.0002]
[1729662562155,0.04731912,67145.0,67144.0,0.0002]
[1729662563362,0.169604,67146.0,67144.0,0.0002]
[1729662563661,0.04748878,67145.0,67144.0,0.0002]
[1729662567068,0.15748878,67145.0,67144.0,0.0002]
[1729662568164,0.11,67145.0,67144.0,0.0002]
[1729662574962,0.059604,67146.0,67144.0,0.0002]
[1729662576872,0.11,67145.0,67144.0,0.0002]
[1729662579770,0.059604,67146.0,67144.0,0.0002]
[1729662583083,0.10228207,67145.0,67144.0,0.0002]
[1729662590078,0.059604,67146.0,67144.0,0.04491844]
[1729662598195,0.16501355,67145.0,67144.0,0.0002]
[1729662600888,0.059604,67146.0,67144.0,0.0002]
[1729662601093,0.16514508,67145.0,67144.0,0.0002]
[1729662601302,0.22475008,67145.0,67144.0,0.0002]
[1729662601497,0.33475008,67145.0,67144.0,0.0002]
[1729662602197,0.169605,67145.0,67144.0,0.0002]
[1729662602606,0.33458766,67145.0,67144.0,0.0002]
[1729662602991,0.27196528,67145.0,67144.0,0.0002]
[1729662603301,0.21697106,67145.0,67144.0,0.0002]
[1729662604602,0.169605,67145.0,67144.0,0.0002]
[1729662609696,0.530405,67145.0,67144.0,0.0002]
[1729662609895,0.530405,67145.0,67144.0,0.04493334]
[1729662610109,0.530405,67145.0,67144.0,0.0002]
[1729662612401,0.640405,67145.0,67144.0,0.0002]
[1729662613410,0.74244683,67145.0,67144.0,0.0002]
[1729662617309,0.10204183,67145.0,67144.0,0.1102]
[1729662617514,0.10204183,67145.0,67144.0,0.169806]
[1729662620408,0.13562679,67149.0,67145.0,0.059604]
[1729662621007,0.13562679,67149.0,67145.0,0.10430855]
[1729662623317,0.13562679,67149.0,67148.0,0.059602]
[1729662624120,0.13562679,67149.0,67145.0,0.04470455]
[1729662624419,0.13562679,67149.0,67145.0,0.0002]
[1729662624810,0.02562679,67149.0,67147.0,0.11]
[1729662625010,1.93185,67152.0,67147.0,0.11]
[1729662625212,1.93109,67152.0,67147.0,0.11]
[1729662625406,1.93109,67152.0,67148.0,0.059602]
[1729662626617,1.83289,67152.0,67148.0,0.059602]
[1729662626925,1.892489,67152.0,67148.0,0.059602]
[1729662627217,0.11,67150.0,67148.0,0.059602]
[1729662627422,0.059603,67147.0,67146.0,0.04470455]
[1729662627721,0.059603,67147.0,67146.0,0.0002]
[1729662627722,0.169603,67147.0,67146.0,0.0002]
[1729662628028,0.11,67147.0,67145.0,0.0002]
[1729662628323,0.169604,67146.0,67145.0,0.0002]
[1729662628529,1.669604,67146.0,67145.0,0.0002]
[1729662629023,0.169604,67146.0,67145.0,0.0002]
[1729662629210,0.169604,67146.0,67144.0,0.0002]
[1729662629211,0.66401042,67146.0,67144.0,0.0002]
[1729662629408,0.66401042,67146.0,67140.0,0.0002]
[1729662629409,0.059616,67132.0,67130.0,0.04469079]
[1729662629614,0.640416,67132.0,67131.0,0.0008]
[1729662630223,0.6869111,67132.0,67131.0,0.0008]
[1729662630533,0.640416,67132.0,67131.0,0.0008]
[1729662631419,0.279616,67132.0,67131.0,0.0008]
[1729662631611,0.640416,67132.0,67131.0,0.0008]
[1729662633228,0.738616,67132.0,67131.0,0.0008]
[1729662633425,0.738616,67132.0,67125.0,0.0002]
[1729662633426,0.169622,67126.0,67125.0,0.0002]
[1729662633726,0.169622,67126.0,67125.0,0.0004]
[1729662635010,0.19529479,67126.0,67125.0,0.0004]
[1729662635423,0.30529479,67126.0,67125.0,0.0004]
[1729662635718,0.059628,67119.0,67118.0,0.0004]
[1729662635925,0.674414,67119.0,67118.0,0.0004]
[1729662636117,0.674414,67119.0,67118.0,0.0006]
[1729662636318,0.628628,67119.0,67118.0,0.0006]
[1729662643523,0.267828,67119.0,67118.0,0.0006]
[1729662643733,0.65394496,67119.0,67118.0,0.0006]
[1729662650255,0.55574496,67119.0,67118.0,0.0006]
[1729662650544,0.65386496,67119.0,67118.0,0.0006]
[1729662651232,0.55574496,67119.0,67118.0,0.0006]
[1729662651446,0.65386496,67119.0,67118.0,0.0006]
[1729662652639,0.55574496,67119.0,67118.0,0.0006]
[1729662652839,0.65386496,67119.0,67118.0,0.0006]
[1729662654736,0.29306496,67119.0,67118.0,0.0006]
[1729662654940,0.65386496,67119.0,67118.0,0.0006]
[1729662655849,0.29306496,67119.0,67118.0,0.0006]
[1729662656037,0.65386496,67119.0,67118.0,0.0006]
[1729662658946,0.38611696,67119.0,67118.0,0.0006]
[1729662659135,0.02531696,67119.0,67118.0,0.0006]
[1729662659333,0.11,67120.0,67118.0,0.0006]
[1729662659548,0.11,67120.0,67119.0,0.04469079]
[1729662659738,0.11,67120.0,67119.0,0.09265593]
[1729662660433,0.11,67120.0,67119.0,0.033]
[1729662662335,0.3608,67121.0,67119.0,0.539588]
[1729662662544,0.3608,67121.0,67119.0,0.092628]
[1729662663645,0.3608,67121.0,67120.0,0.616587]
[1729662663948,0.3608,67121.0,67120.0,0.69115692]
[1729662664344,0.3608,67121.0,67120.0,0.67049427]
[1729662664651,0.059627,67120.0,67119.0,0.033]
[1729662664953,0.059627,67120.0,67119.0,0.092628]
[1729662665136,0.059627,67120.0,67119.0,0.092828]
[1729662665536,0.059627,67120.0,67119.0,0.15237841]
[1729662665743,0.059627,67120.0,67119.0,0.092828]
[1729662666135,0.059627,67120.0,67119.0,0.1523783]
[1729662666534,0.059627,67120.0,67119.0,0.092828]
[1729662667449,0.059627,67120.0,67119.0,0.15236517]
[1729662669749,0.059627,67120.0,67119.0,0.11936517]
[1729662672155,0.059627,67120.0,67119.0,0.05973717]
[1729662672640,0.059627,67120.0,67119.0,0.0002]
[1729662679954,0.530427,67120.0,67119.0,0.0002]
[1729662680962,0.628427,67120.0,67119.0,0.0002]
[1729662682570,0.059628,67119.0,67118.0,0.0006]
[1729662682753,0.169628,67119.0,67118.0,0.0002]
[1729662683062,0.169628,67119.0,67112.0,0.0002]
[1729662683063,0.059632,67114.0,67112.0,0.0002]
[1729662683270,0.4708,67113.0,67112.0,0.0004]
[1729662683785,0.530433,67113.0,67112.0,0.0004]
[1729662683985,0.169633,67113.0,67112.0,0.0004]
[1729662687780,0.169633,67113.0,67112.0,0.060034]
[1729662689286,0.530433,67113.0,67112.0,0.060034]
[1729662689482,0.55525783,67113.0,67112.0,0.11961188]
[1729662689883,0.55525783,67113.0,67112.0,0.0004]
[1729662690083,0.059635,67111.0,67110.0,0.01007806]
[1729662690286,0.059635,67111.0,67105.0,0.07479703]
[1729662690287,0.059637,67109.0,67105.0,0.0004]
[1729662690483,0.059637,67109.0,67108.0,0.361]
[1729662691277,0.169637,67109.0,67108.0,0.361]
[1729662691482,0.059637,67109.0,67108.0,0.361]
[1729662691684,0.169637,67109.0,67108.0,0.361]
[1729662691891,0.157677,67109.0,67108.0,0.361]
[1729662693596,0.267677,67109.0,67108.0,0.0002]
[1729662696189,0.157677,67109.0,67108.0,0.0002]
[1729662704096,0.267677,67109.0,67108.0,0.0002]
[1729662704399,0.059641,67104.0,67103.0,0.3608]
[1729662704599,0.169641,67104.0,67103.0,0.361]
[1729662709406,0.19492679,67104.0,67103.0,0.361]
[1729662711009,0.19492679,67104.0,67103.0,0.0002]
[1729662722616,0.08492679,67104.0,67103.0,0.0002]
[1729662722820,0.19492679,67104.0,67103.0,0.0002]
[1729662725019,0.19492679,67104.0,67103.0,0.04491228]
[1729662725217,0.19492679,67104.0,67103.0,0.04491158]
[1729662725515,0.19492679,67104.0,67103.0,0.0002]
[1729662725914,0.19492679,67104.0,67103.0,0.04491298]
[1729662726118,0.24056658,67104.0,67103.0,0.0002]
[1729662728111,0.29363642,67104.0,67103.0,0.0002]
[1729662730113,0.29365452,67104.0,67103.0,0.0002]
[1729662731427,0.18365452,67104.0,67103.0,0.0002]
[1729662731618,0.29365452,67104.0,67103.0,0.0002]
[1729662733227,0.19492679,67104.0,67103.0,0.0002]
[1729662733520,0.29296679,67104.0,67103.0,0.0002]
[1729662740334,0.33850837,67104.0,67103.0,0.0002]
[1729662744427,0.39131742,67104.0,67103.0,0.0002]
[1729662746427,0.29327742,67104.0,67103.0,0.0002]
[1729662746635,0.39131742,67104.0,67103.0,0.0002]
[1729662747146,0.33847743,67104.0,67103.0,0.0002]
[1729662748126,0.29296679,67104.0,67103.0,0.0002]
[1729662749634,0.29296679,67104.0,67103.0,0.04491298]
[1729662752140,0.29296679,67104.0,67103.0,0.0002]
[1729662752334,0.29296679,67104.0,67100.0,0.0004]
[1729662752335,0.059644,67101.0,67100.0,0.0004]
[1729662752533,0.169644,67101.0,67100.0,0.0004]
[1729662752735,0.169644,67101.0,67100.0,0.0006]
[1729662755143,0.26818906,67101.0,67100.0,0.0006]
[1729662757038,0.21524461,67101.0,67100.0,0.0006]
[1729662758649,0.21529385,67101.0,67100.0,0.0006]
[1729662759550,0.26827099,67101.0,67100.0,0.0006]
[1729662759846,0.21529385,67101.0,67100.0,0.0006]
[1729662760747,0.26827197,67101.0,67100.0,0.0006]
[1729662763352,0.169644,67101.0,67100.0,0.0006]
[1729662764749,0.267564,67101.0,67100.0,0.0006]
[1729662770257,0.36642202,67101.0,67100.0,0.0006]
[1729662772459,0.26850202,67101.0,67100.0,0.0006]
[1729662772759,0.36642202,67101.0,67100.0,0.0006]
[1729662772961,0.09885802,67101.0,67100.0,0.0006]
[1729662773154,0.15574543,67101.0,67100.0,0.0006]
[1729662773658,0.15574543,67101.0,67100.0,0.0314]
[1729662774356,0.20910035,67101.0,67100.0,0.0314]
[1729662774556,0.02260677,67101.0,67100.0,0.47848]
[1729662774751,0.02260677,67101.0,67100.0,0.538125]
[1729662774752,0.13260677,67101.0,67100.0,0.538125]
[1729662776254,0.11,67101.0,67100.0,0.538125]
[1729662776759,0.11,67101.0,67100.0,0.091045]
[1729662778161,0.11,67101.0,67100.0,0.13575798]
[1729662778353,0.11,67101.0,67100.0,0.091045]
[1729662780550,0.11,67101.0,67100.0,0.13575798]
[1729662780755,0.11,67101.0,67100.0,0.091045]
[1729662780955,0.11,67101.0,67100.0,0.0314]
[1729662780956,0.169644,67101.0,67100.0,0.0314]
[1729662782466,0.059644,67101.0,67100.0,0.0314]
[1729662782646,0.169644,67101.0,67100.0,0.0314]
[1729662785153,0.169644,67101.0,67100.0,0.07611298]
[1729662785959,0.169644,67101.0,67100.0,0.0314]
[1729662787059,0.059644,67101.0,67100.0,0.0314]
[1729662787266,0.169644,67101.0,67100.0,0.0314]
[1729662789861,0.169644,67101.0,67100.0,0.0006]
[1729662791266,0.169644,67101.0,67100.0,0.04529394]
[1729662793368,0.21522168,67101.0,67100.0,0.0006]
[1729662794172,0.169644,67101.0,67100.0,0.0006]
[1729662796966,0.21519655,67101.0,67100.0,0.0006]
[1729662800967,0.169644,67101.0,67100.0,0.0006]
[1729662801771,0.169644,67101.0,67100.0,0.06025428]
[1729662802370,0.169644,67101.0,67100.0,0.0006]
[1729662807684,0.11,67101.0,67100.0,0.060245]
[1729662808077,0.157523,67103.0,67101.0,0.059643]
[1729662808271,0.02528579,67104.0,67103.0,0.059642]
[1729662808480,0.11,67105.0,67100.0,0.0006]
[1729662808675,0.11,67105.0,67104.0,0.059641]
[1729662812189,0.02545193,67106.0,67104.0,0.059641]
[1729662812487,0.11,67113.0,67111.0,0.059635]
[1729662812787,0.02467521,67115.0,67112.0,0.0447125]
[1729662812972,0.0939,67129.0,67116.0,0.05963]
[1729662812973,0.20788,67121.0,67116.0,0.05963]
[1729662813172,0.059626,67122.0,67118.0,0.530429]
[1729662813495,0.11,67120.0,67118.0,0.420429]
[1729662813987,0.11,67121.0,67119.0,0.169628]
[1729662814376,0.0022353,67129.0,67118.0,0.47188]
[1729662814694,0.11,67125.0,67124.0,0.059623]
[1729662815687,0.11,67125.0,67124.0,0.420423]
[1729662816186,0.15663099,67125.0,67124.0,0.420423]
[1729662816487,0.15673206,67125.0,67124.0,0.420423]
[1729662817382,0.15673206,67125.0,67124.0,0.3608]
[1729662818879,0.15673206,67125.0,67123.0,0.3608]
[1729662819080,0.15673206,67124.0,67123.0,0.361]
[1729662819988,0.21635506,67124.0,67123.0,0.361]
[1729662820983,0.21635506,67124.0,67123.0,0.0002]
[1729662821489,0.32635506,67124.0,67123.0,0.0002]
[1729662821791,0.37998739,67124.0,67123.0,0.0002]
[1729662821986,0.32635506,67124.0,67123.0,0.0002]
[1729662823197,0.279623,67124.0,67123.0,0.0002]
[1729662824491,0.169623,67124.0,67123.0,0.0002]
[1729662824796,0.267463,67124.0,67123.0,0.0002]
[1729662825794,0.169623,67124.0,67123.0,0.0002]
[1729662825989,0.267463,67124.0,67123.0,0.0002]
[1729662831583,0.169623,67124.0,67123.0,0.0002]
[1729662833495,0.21560528,67124.0,67123.0,0.0002]
[1729662834085,0.169623,67124.0,67123.0,0.0002]
[1729662835700,0.21561064,67124.0,67123.0,0.0002]
[1729662838289,0.169623,67124.0,67123.0,0.0002]
[1729662841191,0.059623,67124.0,67123.0,0.0002]
[1729662841391,0.169623,67124.0,67123.0,0.0002]
[1729662844414,0.3608,67125.0,67123.0,0.0002]
[1729662844605,0.02532443,67129.0,67128.0,0.05962]
[1729662844809,0.11,67131.0,67128.0,0.05962]
[1729662845114,0.11,67131.0,67129.0,0.3608]
[1729662845406,0.10002188,67130.0,67129.0,0.3608]
[1729662845611,0.04629212,67130.0,67129.0,0.3608]
[1729662845907,0.10011102,67130.0,67129.0,0.3608]
[1729662846518,0.21011102,67130.0,67129.0,0.3608]
[1729662846898,0.21011102,67130.0,67124.0,0.11]
[1729662847108,0.11,67127.0,67124.0,0.059823]
[1729662847308,0.04629212,67126.0,67125.0,0.059623]
[1729662850113,0.059619,67130.0,67127.0,0.05962]
[1729662850114,0.11,67128.0,67127.0,0.05962]
[1729662850298,0.15624028,67128.0,67127.0,0.05962]
[1729662851614,0.04624028,67128.0,67127.0,0.16962]
[1729662851814,0.169614,67135.0,67127.0,0.11]
[1729662852111,0.04616037,67134.0,67130.0,0.169618]
[1729662852306,0.04616037,67133.0,67132.0,0.059616]
[1729662852504,0.04616037,67134.0,67132.0,0.11]
[1729662852707,0.11,67137.0,67133.0,0.059615]
[1729662852905,0.059611,67138.0,67133.0,0.059615]
[1729662852906,0.11,67134.0,67133.0,0.059615]
[1729662853106,0.15623098,67134.0,67133.0,0.059615]
[1729662853301,0.11,67134.0,67133.0,0.059615]
[1729662853607,0.38811602,67139.0,67132.0,0.11]
[1729662853806,0.38811602,67139.0,67138.0,0.11]
[1729662854209,0.38811602,67139.0,67137.0,0.059612]
[1729662854513,0.38811602,67139.0,67137.0,0.059812]
[1729662855506,0.02731602,67139.0,67137.0,0.361]
[1729662855709,0.02731602,67139.0,67138.0,0.169611]
[1729662857917,0.02731602,67139.0,67138.0,0.201711]
[1729662858118,0.00223504,67139.0,67138.0,0.201711]
[1729662859520,0.11223504,67139.0,67138.0,0.091711]
[1729662860307,0.00223504,67139.0,67138.0,0.091711]
[1729662860513,0.00223504,67139.0,67138.0,0.201711]
[1729662861721,0.00223504,67139.0,67138.0,0.648551]
[1729662865227,0.059605,67145.0,67144.0,0.059606]
[1729662866831,1.83365,67152.0,67147.0,0.059603]
[1729662866832,0.059601,67150.0,67147.0,0.059603]
[1729662867019,0.0596,67150.0,67149.0,0.11]
[1729662867220,0.0596,67150.0,67149.0,0.169601]
[1729662868223,0.10665084,67150.0,67149.0,0.169601]
[1729662868429,0.21665084,67150.0,67149.0,0.059601]
[1729662869624,0.15705084,67150.0,67149.0,0.059601]
[1729662870426,0.11,67150.0,67149.0,0.059601]
[1729662871224,0.02492939,67151.0,67150.0,0.0596]
[1729662871423,1.83365,67152.0,67149.0,0.11]
[1729662871628,1.83289,67152.0,67151.0,0.0596]
[1729662871832,1.90469471,67152.0,67151.0,0.0596]
[1729662872028,1.85760925,67152.0,67151.0,0.0596]
[1729662873431,1.9046441,67152.0,67151.0,0.0596]
[1729662875027,1.90476438,67152.0,67151.0,0.0596]
[1729662875429,1.85760925,67152.0,67151.0,0.0596]
[1729662876935,1.83289,67152.0,67151.0,0.0596]
[1729662885233,1.83289,67152.0,67151.0,0.4204]
[1729662891637,1.83289,67152.0,67151.0,0.49479703]
[1729662892042,1.83289,67152.0,67151.0,0.58292967]
[1729662893247,1.83289,67152.0,67151.0,0.53387702]
[1729662894450,1.83289,67152.0,67151.0,0.61853264]
[1729662895344,1.83289,67152.0,67151.0,0.61865734]
[1729662895547,1.83289,67152.0,67151.0,0.61862993]
[1729662895950,1.83289,67152.0,67151.0,0.25782993]
[1729662896147,1.83289,67152.0,67151.0,0.61862993]
[1729662897948,1.83289,67152.0,67151.0,0.25782993]
[1729662898345,1.83289,67152.0,67151.0,0.61862993]
[1729662900255,1.83289,67152.0,67151.0,0.50867671]
[1729662900451,1.83289,67152.0,67151.0,0.61867671]
[1729662903258,1.83289,67152.0,67151.0,0.50867671]
[1729662903458,1.83289,67152.0,67151.0,0.61867671]
[1729662903657,1.83289,67152.0,67151.0,0.61868442]
[1729662904455,1.83289,67152.0,67151.0,0.25788442]
[1729662904658,1.83289,67152.0,67151.0,0.61868442]
[1729662905461,1.83289,67152.0,67151.0,0.5304]
[1729662909161,1.83289,67152.0,67151.0,0.1696]
[1729662909351,1.83289,67152.0,67151.0,0.5304]
[1729662910364,1.83289,67152.0,67151.0,0.57508262]
[1729662910854,1.83289,67152.0,67151.0,0.21428262]
[1729662911059,1.83289,67152.0,67151.0,0.57508262]
[1729662912958,1.83289,67152.0,67151.0,0.21428262]
[1729662913159,1.83289,67152.0,67151.0,0.57508262]
[1729662913457,1.83289,67152.0,67151.0,0.61868963]
[1729662914266,1.83289,67152.0,67151.0,0.34716607]
[1729662914465,1.83289,67152.0,67151.0,0.70796607]
[1729662917168,1.83289,67152.0,67151.0,0.34716607]
[1729662917662,1.83289,67152.0,67151.0,0.70796607]
[1729662918263,1.83289,67152.0,67151.0,0.34716607]
[1729662918463,1.83289,67152.0,67151.0,0.70796607]
[1729662919360,1.83289,67152.0,67151.0,0.70813792]
[1729662920369,1.83289,67152.0,67151.0,0.5304]
[1729662920969,1.83289,67152.0,67151.0,0.1696]
[1729662921171,1.83289,67152.0,67151.0,0.5304]
[1729662925175,1.83289,67152.0,67151.0,0.1696]
[1729662926083,1.83289,67152.0,67151.0,0.5304]
[1729662926683,1.83289,67152.0,67151.0,0.1696]
[1729662926982,1.83289,67152.0,67151.0,0.5304]
[1729662928380,1.83289,67152.0,67151.0,0.61889336]
[1729662928580,1.83289,67152.0,67151.0,0.25809336]
[1729662928878,1.83289,67152.0,67151.0,0.61889336]
[1729662929676,1.83289,67152.0,67151.0,0.25809336]
[1729662929885,1.83289,67152.0,67151.0,0.61889336]
[1729662930479,1.83289,67152.0,67151.0,0.25809336]
[1729662930884,1.83289,67152.0,67151.0,0.61889336]
[1729662932191,1.83289,67152.0,67151.0,0.70833594]
[1729662932386,1.83289,67152.0,67151.0,0.34753594]
[1729662932587,1.83289,67152.0,67151.0,0.70833594]
[1729662932982,1.83289,67152.0,67151.0,0.61889336]
[1729662935497,1.83289,67152.0,67151.0,0.5304]
[1729662936793,1.83289,67152.0,67151.0,0.1696]
[1729662936994,1.83289,67152.0,67151.0,0.5304]
[1729662937997,1.83289,67152.0,67151.0,0.1696]
[1729662938198,1.83289,67152.0,67151.0,0.5304]
[1729662939797,1.83289,67152.0,67151.0,0.1696]
[1729662940190,1.83289,67152.0,67151.0,0.5304]
[1729662942295,1.83289,67152.0,67151.0,0.1696]
[1729662942502,1.83289,67152.0,67151.0,0.5304]
[1729662943490,1.83289,67152.0,67151.0,0.36343994]
[1729662943900,1.83289,67152.0,67151.0,0.72423994]
[1729662944301,1.83289,67152.0,67151.0,0.36343994]
[1729662944601,1.83289,67152.0,67151.0,0.72423994]
[1729662944803,1.83289,67152.0,67151.0,0.36343994]
[1729662945200,1.83289,67152.0,67151.0,0.72423994]
[1729662946999,1.83289,67152.0,67151.0,0.36343994]
[1729662947394,1.83289,67152.0,67151.0,0.72423994]
[1729662952206,1.83289,67152.0,67151.0,0.61883217]
[1729662956405,1.83289,67152.0,67151.0,0.61883829]
[1729662958598,1.83289,67152.0,67151.0,0.59002865]
[1729662962412,1.83289,67152.0,67151.0,0.5304]
[1729662962618,1.83289,67152.0,67151.0,0.59002865]
[1729662965716,1.83289,67152.0,67151.0,0.61887196]
[1729662966418,1.83289,67152.0,67151.0,0.25807196]
[1729662966720,1.83289,67152.0,67151.0,0.61887196]
[1729662969315,1.83289,67152.0,67151.0,0.61889259]
[1729662970514,1.83289,67152.0,67151.0,0.50889259]
[1729662970723,1.83289,67152.0,67151.0,0.61889259]
[1729662973521,1.83289,67152.0,67151.0,0.25809259]
[1729662973720,1.83289,67152.0,67151.0,0.21432583]
[1729662973921,1.83289,67152.0,67151.0,0.57512583]
[1729662977714,1.83289,67152.0,67151.0,0.21432583]
[1729662978022,1.83289,67152.0,67151.0,0.57512583]
[1729662978523,1.83289,67152.0,67151.0,0.21432583]
[1729662978826,1.83289,67152.0,67151.0,0.57512583]
[1729662979413,1.83289,67152.0,67151.0,0.21432583]
[1729662979615,1.83289,67152.0,67151.0,0.1696]
[1729662979815,1.83289,67152.0,67151.0,0.5304]
[1729662980216,1.83289,67152.0,67151.0,0.1696]
[1729662980823,1.83289,67152.0,67151.0,0.3634658]
[1729662981319,2.002489,67152.0,67151.0,0.50884397]
[1729662981519,1.94289,67152.0,67149.0,0.361]
[1729662981725,0.0596,67150.0,67149.0,0.361]
[1729662981922,0.0596,67150.0,67149.0,0.44931274]
[1729662982322,0.1696,67150.0,67149.0,0.44931274]
[1729662982527,0.1696,67150.0,67149.0,0.3612]
[1729662982913,0.1696,67150.0,67149.0,0.0004]
[1729662986325,0.0596,67150.0,67149.0,0.0004]
[1729662986531,0.0596,67150.0,67149.0,0.060001]
[1729662988523,0.0596,67150.0,67149.0,0.1195643]
[1729662988725,0.0596,67150.0,67149.0,0.060001]
[1729663003834,0.0596,67150.0,67149.0,0.11954944]
[1729663004351,0.1696,67150.0,67149.0,0.11954944]
[1729663004638,0.1696,67150.0,67149.0,0.060001]
[1729663019360,0.1696,67150.0,67149.0,0.13455085]
[1729663019664,0.1696,67150.0,67149.0,0.060001]
[1729663019863,0.1696,67150.0,67149.0,0.13455085]
[1729663020167,0.1696,67150.0,67149.0,0.07494985]
[1729663020365,0.1696,67150.0,67149.0,0.0004]
[1729663023476,0.0596,67150.0,67149.0,0.0004]
[1729663026175,0.4204,67150.0,67149.0,0.0004]
[1729663026371,0.4204,67150.0,67149.0,0.060001]
[1729663028172,0.0596,67150.0,67149.0,0.060001]